Cogmind - Beta 10.2 @@@ ROGUE MODE // 2021.06.14 @ 11:35:11 Player: Fulminus Result: Destroyed by Y-45 Defender with Beam Rifle Performance ------------- Evolutions (1) 500 Regions Visited (3) 600 Robots Destroyed (16) 80 Value Destroyed (417) 417 Prototype IDs (0) 0 Alien Tech Used (0) 0 Bonus (0) 0 TOTAL SCORE: 1597 Bonus ------- None Cogmind --------- Core Integrity 0/400 Matter 300/300 Energy 100/100 System Corruption 2% Temperature Cool (9) Movement Core (300) Ox5 Location -9/Storage Parts ------- > --- POWER (1) -------- (None) > --- PROPULSION (4) --- (None) > --- UTILITY (2) ------ Large Storage Unit Signal Interpreter > --- WEAPON (2) ------- (None) > --- INVENTORY (10) --- Light Treads Large Storage Unit Grenade Launcher Peak State ------------ > --- POWER ------------ Ion Engine > --- PROPULSION ------- Aluminum Leg Aluminum Leg Aluminum Leg Aluminum Leg > --- UTILITY ---------- Large Storage Unit Terrain Scanner > --- WEAPON ----------- Medium Laser Welding Torch > --- INVENTORY -------- Light Treads Light Treads Aluminum Leg Aluminum Leg Large Storage Unit Signal Interpreter Grenade Launcher [Rating: 9] Favorites ----------- Power Light Ion Engine Engine Light Ion Engine Propulsion Aluminum Leg Treads Light Treads Leg Aluminum Leg Utility Large Storage Unit Device Terrain Scanner Storage Large Storage Unit Processor Signal Interpreter Weapon EM Pulse Gun Energy Gun EM Pulse Gun Ballistic Gun Light Assault Rifle Launcher Grenade Launcher Special Weapon Welding Torch Build | -11 -10 -9 -9 ------- Run | Scr Mat Mat Sto Slots Evolved 2 | . . 2 . Power . | . . . . Propulsion 2 | . . 2 . Utility . | . . . . Weapon . | . . . . Parts Attached 22 | 7 6 2 7 Power 2 | 1 1 . . Engine 2 | 1 1 . . Core . | . . . . Reactor . | . . . . Propulsion 7 | 2 . 2 3 Treads 1 | . . . 1 Leg 6 | 2 . 2 2 Wheel . | . . . . Hover . | . . . . Flight . | . . . . Utility 5 | 2 2 . 1 Device 1 | . 1 . . Storage 3 | 2 1 . . Processor 1 | . . . 1 Hackware . | . . . . Protection . | . . . . Artifact . | . . . . Weapon 8 | 2 3 . 3 Energy Gun 3 | 1 1 . 1 Energy Cannon . | . . . . Ballistic Gun 2 | 1 . . 1 Ballistic Cannon . | . . . . Launcher 1 | . 1 . . Special Weapon 2 | . 1 . 1 Impact Weapon . | . . . . Slashing Weapon . | . . . . Piercing Weapon . | . . . . Special Melee Weapon . | . . . . Unidentified Prototypes . | . . . . Parts Lost 16 | . 3 . 13 Power 2 | . 1 . 1 Propulsion 7 | . . . 7 Utility 1 | . . . 1 Weapon 6 | . 2 . 4 Highest Loss Streak 6 | . 3 . 6 Average Slot Usage (%) 92 | . 95 94 84 Engine 11 | . 13 11 8 Leg 31 | . 28 38 37 Device 8 | . 9 11 5 Storage 15 | . 18 11 11 Processor 1 | . . . 5 Energy Gun 11 | . 13 11 6 Ballistic Gun 8 | . 10 . 3 Special Weapon 2 | . . 11 4 Naked Turns . | . . . . Heaviest Build 27 | 14 27 25 25 Greatest Support 40 | 20 20 40 40 Greatest Overweight (x) 5 | . 1 . 5 Average Overweight (x) . | . . . . Largest Inventory Capacity 12 | 8 12 10 10 Average Capacity 9 | 6 9 10 10 Most Carried 10 | 8 10 8 8 Average Carried 7 | 4 8 7 5 Final Capacity 10 | 8 10 10 10 Final Carried 9 | 8 9 7 3 Class Distribution -------------------- 86% | Mutant 13% | Scavenger-Mutant Dominant Class ---------------- Mutant | -10/Materials Mutant | -9/Materials Mutant | -9/Storage Resources | -11 -10 -9 -9 ----------- Run | Scr Mat Mat Sto Matter Collected 418 | 244 100 . 74 Remotely . | . . . . Salvage Created 537 | 55 320 . 162 Parts 35 | 3 23 . 9 Haulers Intercepted 1 | . 1 . . Recyclers Shooed 1 | . 1 . . Parts Field Recycled . | . . . . Retrieved Matter . | . . . . Parts Self-Destructed . | . . . . Prevented . | . . . . Kills | -11 -10 -9 -9 ------- Run | Scr Mat Mat Sto Combat Hostiles Destroyed 12 | . 9 . 3 Guns 10 | . 7 . 3 AOE 2 | . 2 . . Classes Destroyed 7 | 1 5 . 1 Builder 1 | . 1 . . Hauler 1 | . 1 . . Recycler 1 | 1 . . . Watcher 1 | . 1 . . Swarmer 3 | . 3 . . Grunt 7 | . 6 . 1 Sentry 2 | . . . 2 Best Kill Streak 5 | 1 5 . 2 Combat Bots Only 3 | . 3 . 2 Max Kills in Single Turn 4 | 1 4 . 1 Gunslinging . | . . . . Exploded 1 | . 1 . . Melee . | . . . . Uniques/NPCs Destroyed . | . . . . Combat | -11 -10 -9 -9 -------- Run | Scr Mat Mat Sto Damage Taken 1826 | . 466 . 1360 Core 437 | . 30 . 407 Absorbed by Shields . | . . . . Core Remaining (%) 94 | 100 88 . . Volleys Fired 61 | 1 34 . 26 Largest 2 | 2 2 . 2 Hottest 90 | 60 80 . 90 Shots Fired 91 | 2 57 . 32 Gun 83 | 2 52 . 29 Cannon . | . . . . Launcher 1 | . 1 . . Special 7 | . 4 . 3 Kinetic 35 | 1 18 . 16 Thermal 27 | . 20 . 7 Explosive 1 | . 1 . . Electromagnetic 28 | 1 18 . 9 Robot Hit Streak 6 | 2 6 . 5 Robot Miss Streak 3 | . 3 . 2 Penetration Max . | . . . . Secondary Targets 1 | . 1 . . Max Gunslinging Chain 1 | . 1 . . Shots Hit Robots 57 | 2 33 . 22 Core Hits 26 | 2 18 . 6 Critical Hits . | . . . . Critical Kills . | . . . . Critical Parts Destroyed . | . . . . Melee Attacks . | . . . . Impact . | . . . . Slashing . | . . . . Piercing . | . . . . Sneak Attacks . | . . . . Combat Hostiles . | . . . . Follow-up Attacks . | . . . . Damage Inflicted 1202 | 19 904 . 279 Guns 648 | 19 350 . 279 Cannons . | . . . . Explosions 550 | . 550 . . Melee . | . . . . Ramming . | . . . . Kinetic 243 | 7 42 . 194 Thermal 217 | . 179 . 38 Explosive 502 | . 502 . . Electromagnetic 240 | 12 181 . 47 Impact . | . . . . Slashing . | . . . . Piercing . | . . . . Highest Corruption 2 | . . . 2 Average Corruption 2 | . . . 2 Corruption Purged . | . . . . Effects 7 | . . . 7 Message Errors 2 | . . . 2 Heat Flow Errors 1 | . . . 1 Energy Discharges 1 | . . . 1 Data Loss (minor) 1 | . . . 1 Targeting Errors 2 | . . . 2 Overload Shots . | . . . . Overflow Damage 248 | . 248 . . Projectiles . | . . . . Explosions 248 | . 248 . . Melee . | . . . . Knockbacks . | . . . . Impact . | . . . . Kinetic . | . . . . Secondary . | . . . . Self-Inflicted Damage 203 | . 203 . . Shots 3 | . 3 . . Rammed . | . . . . Targets Rammed . | . . . . Kicked . | . . . . Crushed . | . . . . Highest Temperature 295 | 10 70 . 295 Average Temperature 58 | 7 22 . 130 Received Heat Transfer 612 | . 84 . 528 Effects 2 | . . . 2 Interference 2 | . . . 2 Siege Activations . | . . . . Robots Corrupted . | . . . . Combat Hostiles . | . . . . Parts Fried . | . . . . Impact Corruptions . | . . . . Robots Melted . | . . . . Combat Hostiles . | . . . . Parts Melted . | . . . . Heat Transferred 631 | . 520 . 111 Parts Sabotaged . | . . . . Parts Stolen . | . . . . Parts Stripped . | . . . . Power Chain Reactions 2 | . 2 . . Missiles Intercepted . | . . . . Alert | -11 -10 -9 -9 ------- Run | Scr Mat Mat Sto Peak Influence 219 | 5 219 92 93 Initial 92 | . 3 92 38 Average 55 | 3 62 92 51 Maximum Alert Level 1 | . 1 . . Low Security (%) 97 | 100 96 100 100 Level 1 2 | . 3 . . Level 2 . | . . . . Level 3 . | . . . . Level 4 . | . . . . Level 5 . | . . . . High Security . | . . . . Max Security . | . . . . Squads Dispatched 4 | . 4 . . Investigation 1 | . 1 . . Extermination . | . . . . Reinforcement 3 | . 3 . . Assault . | . . . . Garrison . | . . . . Intercept . | . . . . Construction Impeded . | . . . . Haulers Reinforced . | . . . . Stealth | -11 -10 -9 -9 --------- Run | Scr Mat Mat Sto Distress Signals 2 | . 1 . 1 Communications Jammed . | . . . . Distress Signals . | . . . . Times Spotted 31 | . 20 . 11 Peak Tracking Total 7 | . 4 . 7 Tactical Retreats . | . . . . Traps | -11 -10 -9 -9 ------- Run | Scr Mat Mat Sto Traps Triggered 3 | . 1 . 2 Indirectly . | . . . . Trap Hack Attempts . | . . . . Triggered . | . . . . Disarmed . | . . . . Reprogrammed . | . . . . Reused . | . . . . Traps Extracted . | . . . . Installed . | . . . . Triggered . | . . . . Machines | -11 -10 -9 -9 ---------- Run | Scr Mat Mat Sto Machines Disabled 3 | . 3 . . Max in Single Turn 1 | . 1 . . Machines Sabotaged . | . . . . Garrisons Compromised . | . . . . Overloaded Fab Kills . | . . . . Fab Network Shutdowns . | . . . . Hacking | -11 -10 -9 -9 --------- Run | Scr Mat Mat Sto Machines Accessed 3 | . 1 . 2 Terminals 3 | . 1 . 2 Fabricators . | . . . . Repair Stations . | . . . . Recycling Units . | . . . . Scanalyzers . | . . . . Garrison Access . | . . . . Total Hacks 3 | . 1 . 2 Successful 3 | . 1 . 2 Failed . | . . . . Catastrophic . | . . . . Database Lockouts . | . . . . Manual 4 | . 1 . 3 Terminals 3 | . 1 . 2 Fabricators . | . . . . Repair Stations . | . . . . Recycling Units . | . . . . Scanalyzers . | . . . . Garrison Access . | . . . . Terminal Hacks 3 | . 1 . 2 Zone Layout 3 | . 1 . 2 Fabricator Hacks . | . . . . Repair Station Hacks . | . . . . Recycling Unit Hacks . | . . . . Scanalyzer . | . . . . Garrison Access Hacks . | . . . . Unauthorized Hacks . | . . . . Terminals . | . . . . Fabricators . | . . . . Repair Stations . | . . . . Recycling Units . | . . . . Scanalyzers . | . . . . Garrison Access . | . . . . Data Cores Recovered . | . . . . Used . | . . . . Hacking Detections . | . . . . Full Trace Events . | . . . . Feedback Events . | . . . . Feedback Blocked . | . . . . Robot Schematics Acquired . | . . . . Robots Built . | . . . . Matter . | . . . . Time . | . . . . Total Robot Build Rating . | . . . . Part Schematics Acquired . | . . . . Parts Built . | . . . . Matter . | . . . . Time . | . . . . Total Part Build Rating . | . . . . Parts Repaired . | . . . . Time . | . . . . Parts Recycled . | . . . . Recycled Matter . | . . . . Retrieved Matter . | . . . . Retrieved Components . | . . . . Parts Scanalyzed . | . . . . Part Schematics Acquired . | . . . . Parts Damaged . | . . . . Bothacking | -11 -10 -9 -9 ------------ Run | Scr Mat Mat Sto Used RIF Installer . | . . . . Robots Hacked . | . . . . Non-combat . | . . . . Combat . | . . . . Robot Hacks Applied . | . . . . Relay Couplers Released . | . . . . Robots Rewired . | . . . . Allies Hacked . | . . . . Hacks Repelled . | . . . . Allies | -11 -10 -9 -9 -------- Run | Scr Mat Mat Sto Total Allies . | . . . . Largest Group . | . . . . Highest-Rated Group . | . . . . Highest-Rated Ally . | . . . . Total Orders . | . . . . Ally Attacks . | . . . . Total Damage . | . . . . Kills . | . . . . Allies Corrupted . | . . . . Allies Melted . | . . . . Intel | -11 -10 -9 -9 ------- Run | Scr Mat Mat Sto Robot Analysis Total . | . . . . Derelict Logs Recovered . | . . . . Drone Launches . | . . . . Drone Recoveries . | . . . . Exploration | -11 -10 -9 -9 ------------- Run | Scr Mat Mat Sto Turns Passed 1060 | 81 657 19 303 Spaces Moved 527 | 53 303 15 156 Core 15 | 10 . . 5 Treads . | . . . . Legs 512 | 43 303 15 151 Wheels . | . . . . Hover . | . . . . Flight . | . . . . Fastest Speed 50 | 50 120 120 120 Average Speed 134 | 106 143 120 128 Slowest Speed 300 | 120 150 120 300 Overloaded Moves . | . . . . Propulsion Burnouts . | . . . . Robots Hopped . | . . . . Cave-ins Triggered . | . . . . Exploration Rate (%) 22 | 5 54 3 28 Regions Visited 3 Branch Regions 1 Pre-discovered Areas . | . . . . Known Exits Taken . | . . . . Unknown Exits Taken 3 | 1 1 1 . Scrap Searched . | . . . . Spaces Dug . | . . . . Terrain Destroyed 44 | . 44 . . Melee . | . . . . Projectile . | . . . . AOE 44 | . 44 . . Terrain Rammed . | . . . . Walls Destroyed . | . . . . Machines Disabled . | . . . . Actions | -11 -10 -9 -9 --------- Run | Scr Mat Mat Sto Total 794 | 75 477 16 226 Wait 146 | . 111 . 35 Move 524 | 52 302 14 156 Hop . | . . . . Pick Up 30 | 15 13 . 2 Fast Attach . | . . . . Attach 20 | 7 5 2 6 Detach 1 | . 1 . . Swap 2 | . 1 . 1 Drop 10 | . 10 . . Fire 61 | 1 34 . 26 Melee . | . . . . Ram . | . . . . Kick . | . . . . Crush . | . . . . Escape Stasis . | . . . . Rewire . | . . . . Trap . | . . . . Miscellaneous . | . . . . Route ------- -11/Scrapyard -10/Materials -9/Materials -9/Storage (discovered 1 exit: [Rec]) History --------- Turn | Location | Event 45 | -11/Scrapyard | Discovered new exit (range 15) 82 | -11/Scrapyard | Entered Materials 312 | -10/Materials | Build established: Mutant 600 | -10/Materials | Lost 3 parts (1p2w) 668 | -10/Materials | Discovered new exit (range 14) 739 | -10/Materials | Entered another Materials area 739 | -9/Materials | Evolved 2 slots: Propulsion x2 741 | -9/Materials | Discovered new exit (range 14) 758 | -9/Materials | Entered Storage 831 | -9/Storage | Discovered new exit (range 15) 962 | -9/Storage | Lost 6 parts (2n1u3w) 1053 | -9/Storage | Core integrity fell below 50% 1057 | -9/Storage | Core integrity fell below 20% 1061 | -9/Storage | Destroyed by Y-45 Defender with Beam Rifle Last Messages --------------- Aluminum Leg destroyed. K-01 Serf collects debris. Connecting with Terminal... >>Layout(Zone) Retrieving Zone 4H layout... Downloaded map data. CBKXQI3M8UWVL#,LHVDOASKSQ Aluminum Leg destroyed. K-01 Serf destroyed. Aluminum Leg destroyed. R-06 Scavenger collects Lgt. Ion Engine. K-01 Serf collects debris. R-06 Scavenger collects Med. Matter Pod. K-01 Serf collects debris. U-05 Engineer builds a Door. Hvy. Assault Rifle destroyed. K-01 Serf collects debris. System corrupted: Energy discharge (-24). Aluminum Leg destroyed. Lgt. Treads destroyed. Map ----- +----------------------------------------------------+ | ????????????????????????# #?? ? # | | ??????????????????# # # " | | ??????????????????# # # """ """ | | ??????????????????# # # """ """ " | | ??????????????????### ### + """ """ # | | ????????????????????###?# # """ """ # | | ????????????????????????# # """ """ # | | ????????????????????????# # # | | ???????????????????????## #####"T"### | | ?????????????########### #??#"""#?? | | ?????????????# % #??#####?? | | ?????????????# #????????? | | ?????????????# #????????? | | ?????????????# a ####### #????????? | | ?????????????# Y #??######"########???? | | ?????????????# Yw#??# #???? | | ?????????????# g#??# """" T #???? | | ?????????????# #??# """" #???? | | ?????????????# #??# """" **! #???? | | ?????????????# #??# """" **! ##### | | ?????????????# #??# *!! # # | | ?????????????# #??############### # | | ????????????##gY ##?????# # # | | ????????????# ga #?????# # # | | ????????????# ####### # # | | ??????????? + @ /a + + | | ?????????? # ####### """ """ # # | | ????????? # #?????# """ """ # # | | ??????? ?###;######??# """ """ # # | | ?????? ???? #??# # # | | ?????####+?????" #??######+#### # | | ???????????????" #???????# #??# # | | ???????????????" ????????????????????? | | ??????????????? ???????????????????? | | ???????????????? ???????????????????? | | ???????????????? ??????????????????? | | ????????????????? ??????????????????? | | ????????????????? ?????????????????? | | ??????????????????###?????????????????? | | ??????????????????????????????????????? | | ??????????????????????????????????????? | | ??????????????????????????????????????? | | ??????????????????????????????????????? | | ??????????????????????????????????????? | | ??????????????????????????????????????? | | ??????????????????????????????????????? | | ??????????????????????????????????????? | | ??????????????????????????????????????? | | ??????????????????????????????????????? | | ??????????????????????????????????????? | +----------------------------------------------------+ Best States ------------- Heat Dissipation 28 Energy Generation 10 Energy Capacity 250 Matter Stores 300 Matter Capacity 300 Sight Range 16 Terrain Scan Range 14 Terrain Scan Density 10 Evasion (%) 50 Item Schematics ----------------- None Robot Schematics ------------------ None Fabricated ------------ Nothing Alien Tech Used ----------------- None Achievements -------------- None Challenges ------------ None Game ------ Seed BladeSeismicKit Manual? 0 Play Time 00:16:28 Cumulative 7.7 hours Start 2021.06.14 @ 08:53:25 End 2021.06.14 @ 11:35:11 Sessions 3 Manual Loads 0 Difficulty Rogue Special Mode None Game No. 39 Rogue 39 Adventurer 0 Explorer 0 Win Type - Total 0 Types 0/0/0/0/0/0/0/0/0 Lore% 5 Gallery% 19 Achievement% 14 Wizard Run 0 Options --------- ASCII 0 Keyboard 0 Movement Mouse Keybinds 0 Fullscreen 1 Font 18/SmallcapsGlow Map View 76x50 Tactical HUD 0 Map Filters NONE Filters NONE Steam 1 RUN: b5f6e7b3-2bd8-4ed2-a302-0e781c702dfd